{"text_format":"1","workbook":"xlsx","n_sheets":3,"sheets":["1泊2日","2泊3日","３泊４日"],"not_rendered":{"charts":0,"images":0,"macros":1,"external_links":0,"defined_names":3,"comments":1,"pivot_tables":0},"unopened":[],"bounds":{"document_bytes":16777216,"sheet_cells":100000,"rows_first":2000,"rows_last":500,"rows_between":2000,"halvings":0,"cell_chars":16384,"cell_head_chars":4096},"cells_cut":0,"cells_raw":0,"read":"whole","date_system":"1900"}

{"sheet":"1泊2日","index":0,"n_rows":30,"n_cols":37,"rows_kept":30,"cut":false,"hidden":false,"merged":[[1,17,1,18],[2,0,3,1],[2,2,3,3],[2,4,3,5],[2,6,3,7],[2,8,3,9],[2,10,3,11],[2,12,3,13],[2,14,3,15],[2,17,3,18],[1,0,1,1],[1,2,1,3],[1,4,1,7],[1,8,1,9],[1,10,1,11],[1,12,1,15],[2,19,3,24],[4,7,6,16],[4,17,4,20],[4,21,5,21],[4,22,5,22],[4,23,5,23],[4,24,5,24],[5,17,5,20],[6,17,6,24],[7,9,8,9],[7,10,8,10],[7,11,8,11],[7,12,8,12],[7,13,8,13],[7,0,8,2],[7,3,8,3],[7,4,8,4],[7,5,8,5],[7,6,8,6],[7,7,8,7],[9,24,10,24],[10,17,10,20],[11,3,12,4],[11,5,12,10],[11,12,11,14],[11,15,12,16],[11,17,12,24],[12,11,12,14],[7,23,8,23],[7,24,8,24],[8,17,8,20],[9,3,10,4],[9,5,10,16],[9,17,9,20],[9,21,10,21],[9,22,10,22],[9,23,10,23],[7,14,8,14],[7,15,8,15],[7,16,8,16],[7,17,7,20],[7,21,8,21],[7,22,8,22],[7,8,8,8],[15,0,17,2],[15,4,15,6],[15,7,15,9],[15,10,15,12],[15,13,15,16],[15,17,17,19],[13,3,14,4],[13,6,13,14],[13,15,14,16],[13,18,13,24],[14,5,14,14],[14,18,14,24],[9,0,14,2],[15,20,17,21],[15,22,17,24],[16,4,16,6],[16,7,16,9],[16,10,16,12],[16,13,16,15],[17,4,17,6],[17,7,17,9],[17,10,17,12],[17,13,17,15],[20,12,22,12],[20,13,22,17],[20,18,22,18],[20,19,22,24],[21,3,21,4],[22,3,22,4],[18,18,18,20],[18,22,18,24],[19,0,25,2],[19,3,19,4],[19,7,19,11],[19,13,19,17],[19,19,19,24],[20,3,20,4],[20,6,22,6],[20,7,22,11],[18,0,18,2],[18,3,18,5],[18,6,18,8],[18,9,18,11],[18,12,18,14],[18,15,18,17],[23,19,25,24],[24,3,24,4],[25,3,25,4],[23,3,23,4],[23,6,25,6],[23,7,25,11],[23,12,25,12],[23,13,25,17],[23,18,25,18],[27,14,28,15],[27,16,28,24],[28,8,28,9],[28,10,28,11],[26,0,26,2],[26,3,26,24],[27,0,28,3],[27,4,28,5],[27,6,28,7],[27,8,27,9],[27,10,27,11],[27,12,28,13]]}
[]
["所　長",null,"次　長",null,"総　務",null,null,null,"財団",null,"FD",null,"受付",null,null,null,null,"受付日",null,{"$f":"YEAR(TODAY())-2018","v":7},"年",{"$f":"MONTH(TODAY())","v":4},"月",{"$f":"DAY(TODAY())","v":22},"日"]
[null,null,null,null,null,null,null,null,null,null,null,null,null,null,null,null,null,"受付者",null,null,null,null,null,null,null,null,"日にち計算列",null,null,null,"野外体験活動","食堂","日",1,null,"入所","天体観測"]
[null,null,null,null,null,null,null,null,null,null,null,null,null,null,null,null,null,null,null,null,null,null,null,null,null,null,null,null,null,null,"大会参加","自炊","月",2,null,"カレー作り","入浴"]
[null,null,null,null,null,null,null,"利用申込　受付票",null,null,null,null,null,null,null,null,null,"下見・打ち合せ",null,null,null,null,"月",null,"日",null,{"$f":"DATE(D8+2018,F8,H8)-30","v":"2024-10-31"},null,null,null,"研修",null,"火",3,null,"自然散策","キャンドルサービス"]
[null,null,null,null,null,null,null,null,null,null,null,null,null,null,null,null,null,"（入所の１カ月前まで）",null,null,null,null,null,null,null,null,null,null,null,null,"キャンプ指導者養成講習会",null,"水",4,null,"うどん作り(打ち込み)","キャンプファイヤー"]
[null,null,null,null,null,null,null,null,null,null,null,null,null,null,null,null,null,"来所日が決まり次第お知らせください",null,null,null,null,null,null,null,null,null,null,null,null,null,null,"木",5,null,"うどん作り(冷やし)","消灯・就寝"]
["利用年月日",null,null,7,"年",null,"月",null,"日(",{"$f":"TEXT(DATE(D8+2018,F8,H8),\"aaa\")","v":"土"},"）～",null,"月",null,"日(",{"$f":"TEXT(DATE(D8+2018,L8,N8),\"aaa\")","v":"土"},"）","申請書類の提出",null,null,null,null,"月",null,"日",null,null,null,null,null,null,null,"金",6,null,"WR","研修（第１、２研修室）"]
[null,null,null,null,null,null,null,null,null,null,null,null,null,null,null,null,null,"（入所の1か月前まで）",null,null,null,null,null,null,null,null,{"$f":"DATE(D8+2018,F8,H8)-21","v":"2024-11-09"},null,null,null,null,null,"土",7,null,"焼き板"]
["利用者",null,null,"団体名",null,null,null,null,null,null,null,null,null,null,null,null,null,"食事人数の確定",null,null,null,null,"月",null,"日",null,null,null,null,null,null,null,null,8,null,"退所点検"]
[null,null,null,null,null,null,null,null,null,null,null,null,null,null,null,null,null,"（入所の４日前 土日祝除く）",null,null,null,null,null,null,null,null,{"$f":"DATE(D8+2018,F8,H8)-3","v":"2024-11-27"},null,null,null,null,null,null,9,null,"退所"]
[null,null,null,"代表者",null,null,null,null,null,null,null,"担当",null,null,null,"目　的",null,null,null,null,null,null,null,null,null,null,null,null,null,null,null,null,null,10,null,"クラフト活動"]
[null,null,null,null,null,null,null,null,null,null,null,null,null,null,null,null,null,null,null,null,null,null,null,null,null,null,null,null,null,null,null,null,null,11,null,"研修（第１、２研修室）"]
[null,null,null,"住　所",null,"〒",null,null,null,null,null,null,null,null,null,"連絡先",null,"TEL",null,null,null,null,null,null,null,null,null,null,null,null,null,null,null,12]
[null,null,null,null,null,null,null,null,null,null,null,null,null,null,null,null,null," ＦＡＸ",null,null,null,null,null,null,null,null,null,null,null,null,null,null,null,13]
["利用人数",null,null,null,"一般",null,null,"高校生",null,null,"中学生",null,null,"小学生（以下）",null,null,null,"合計",null,null,{"$f":"SUM(E17+E18+H17+H18+K17+K18+N17+N18)","v":0},null,"名",null,null,null,null,null,null,null,null,null,null,14]
[null,null,null,"男",null,null,null,null,null,null,null,null,null,null,null,null,null,null,null,null,null,null,null,null,null,null,null,null,null,null,null,null,null,15]
[null,null,null,"女",null,null,null,null,null,null,null,null,null,null,null,null,null,null,null,null,null,null,null,null,null,null,null,null,null,null,null,null,null,16]
["利用施設\n（宿 泊）",null,null,"第 １ 指導者室\n１０１\n１０２",null,null,"２０１\n２０２\n第 ２指導者室\n２０３\n２０４\n２０５",null,null,"３０１\n３０２\n３０３\n第 ３指導者室",null,null,"第 ４ 指導者室\n４０１\n４０２",null,null,"５０１\n５０２\n第 ５ 指導者室\n５０３\n５０４",null,null,"６０１\n６０２\n６０３\n６０４",null,null,null,"テント\n計（）張\n\n利用サイト\n（　　　）",null,null,null,null,null,null,null,null,null,null,17]
["活動計画",null,null,"入所時間",null,"日",null,"午　　前",null,null,null,null,"昼食","午　　後",null,null,null,null,"夕食","夜",null,null,null,null,null,null,null,null,null,null,null,null,null,18]
[null,null,null,":",null,{"$f":"F8","v":0},null,null,null,null,null,null,null,null,null,null,null,null,null,null,null,null,null,null,null,null,null,null,null,null,null,null,null,19]
[null,null,null,"退所時間\n:",null,"／",null,null,null,null,null,null,null,null,null,null,null,null,null,null,null,null,null,null,null,null,null,null,null,null,null,null,null,20]
[null,null,null,null,null,{"$f":"H8","v":0},null,null,null,null,null,null,null,null,null,null,null,null,null,null,null,null,null,null,null,null,null,null,null,null,null,null,null,21]
[null,null,null,"退所日の\n会計確認\n：",null,{"$f":"F8","v":0},null,null,null,null,null,null,null,null,null,null,null,null,null,null,null,null,null,null,null,null,null,null,null,null,null,null,null,22]
[null,null,null,"退所点検",null,"／",null,null,null,null,null,null,null,null,null,null,null,null,null,null,null,null,null,null,null,null,null,null,null,null,null,null,null,23]
[null,null,null,":",null,{"$f":"F23+1","v":1},null,null,null,null,null,null,null,null,null,null,null,null,null,null,null,null,null,null,null,null,null,null,null,null,null,null,null,24]
["備　考",null,null,"・下見打合せまでに「利用の手引き」を必ずご確認ください。\n・手続きと書類の提出は「利用の手引き」にのっとって行ってください。\n\n※「利用の手引き」、「提出書類」はホームページからダウンロードしてご利用ください。\n\n五色台少年自然センター　　TEL：０８７－８８１－４４２８\n　　　　　　　　　　　　　　　　　 FAX：０８７－８８１－４４８４\n　　　　　　　　　　　　　　　　　メールアドレス：goshikidaishonen@pref.kagawa.lg.jp 　",null,null,null,null,null,null,null,null,null,null,null,null,null,null,null,null,null,null,null,null,null,null,null,null,null,null,null,null,null,28]
["利用期日決定の\nお知らせ",null,null,null,"文書\n日付",null,null,null,"発送日",null,null,null,"書類\n提出",null,null,null,"　□　利用申請書\n　□　活動日程表\n　□　施設利用の詳細\n　□　食事人数計画\n　□　食事メニュー除去希望記入表",null,null,null,null,null,null,null,null,null,null,null,null,null,null,null,null,29]
[null,null,null,null,null,null,null,null,"方法",null,"FAX\n郵送\nMAIL",null,null,null,null,null,null,null,null,null,null,null,null,null,null,null,null,null,null,null,null,null,null,30]
[null,null,null,null,null,null,null,null,null,null,null,null,null,null,null,null,null,null,null,null,null,null,null,null,null,null,null,null,null,null,null,null,null,31]

{"sheet":"2泊3日","index":1,"n_rows":33,"n_cols":37,"rows_kept":33,"cut":false,"hidden":false,"merged":[[29,0,29,2],[29,3,29,24],[25,3,25,4],[26,3,26,4],[26,18,28,18],[27,3,27,4],[28,3,28,4],[26,12,28,12],[26,6,28,6],[26,7,28,11],[26,13,28,17],[26,19,28,24],[30,14,31,15],[30,16,31,24],[31,8,31,9],[31,10,31,11],[30,0,31,3],[30,4,31,5],[30,6,31,7],[30,8,30,9],[30,10,30,11],[30,12,31,13],[24,3,24,4],[20,12,22,12],[20,18,22,18],[23,12,25,12],[23,18,25,18],[23,6,25,6],[20,19,22,24],[20,7,22,11],[20,13,22,17],[23,7,25,11],[23,13,25,17],[23,19,25,24],[15,22,17,24],[16,7,16,9],[16,10,16,12],[17,7,17,9],[17,10,17,12],[18,18,18,20],[18,22,18,24],[19,0,28,2],[19,3,19,4],[19,7,19,11],[19,13,19,17],[19,19,19,24],[20,3,20,4],[20,6,22,6],[18,0,18,2],[18,3,18,5],[18,6,18,8],[18,9,18,11],[18,12,18,14],[18,15,18,17],[23,3,23,4],[15,0,17,2],[21,3,21,4],[22,3,22,4],[15,4,15,6],[15,7,15,9],[15,10,15,12],[15,13,15,16],[15,17,17,19],[15,20,17,21],[9,0,14,2],[13,3,14,4],[13,6,13,14],[13,15,14,16],[16,13,16,15],[17,13,17,15],[16,4,16,6],[17,4,17,6],[7,16,8,16],[9,23,10,23],[9,24,10,24],[10,17,10,20],[11,3,12,4],[11,5,12,10],[11,12,11,14],[11,15,12,16],[11,17,12,24],[12,11,12,14],[9,3,10,4],[9,5,10,16],[9,17,9,20],[9,21,10,21],[9,22,10,22],[4,23,5,23],[4,24,5,24],[5,17,5,20],[6,17,6,24],[7,0,8,2],[7,3,8,3],[7,4,8,4],[7,5,8,5],[7,6,8,6],[7,7,8,7],[7,8,8,8],[7,9,8,9],[7,10,8,10],[7,17,7,20],[7,21,8,21],[7,22,8,22],[7,23,8,23],[7,24,8,24],[8,17,8,20],[7,11,8,11],[7,12,8,12],[7,13,8,13],[7,14,8,14],[7,15,8,15],[1,10,1,11],[1,12,1,15],[2,14,3,15],[1,17,1,18],[13,18,13,24],[14,18,14,24],[14,5,14,14],[2,0,3,1],[2,2,3,3],[2,4,3,5],[2,6,3,7],[2,8,3,9],[2,10,3,11],[1,0,1,1],[1,2,1,3],[1,4,1,7],[1,8,1,9],[2,12,3,13],[2,17,3,18],[2,19,3,24],[4,7,6,16],[4,17,4,20],[4,21,5,21],[4,22,5,22]]}
[]
["所　長",null,"次　長",null,"総　務",null,null,null,"財団",null,"FD",null,"受付",null,null,null,null,"受付日",null,{"$f":"YEAR(TODAY())-2018","v":7},"年",{"$f":"MONTH(TODAY())","v":4},"月",{"$f":"DAY(TODAY())","v":22},"日"]
[null,null,null,null,null,null,null,null,null,null,null,null,null,null,null,null,null,"受付者",null,null,null,null,null,null,null,null,"日にち計算列",null,null,null,"野外体験活動","食堂","日",1,null,"入所","天体観測"]
[null,null,null,null,null,null,null,null,null,null,null,null,null,null,null,null,null,null,null,null,null,null,null,null,null,null,null,null,null,null,"大会参加","自炊","月",2,null,"カレー作り","入浴"]
[null,null,null,null,null,null,null,"利用申込　受付票",null,null,null,null,null,null,null,null,null,"下見・打ち合せ",null,null,null,null,"月",null,"日",null,{"$f":"DATE(D8+2018,F8,H8)-30","v":"2024-10-31"},null,null,null,"研修",null,"火",3,null,"自然散策","キャンドルサービス"]
[null,null,null,null,null,null,null,null,null,null,null,null,null,null,null,null,null,"（入所の１カ月前まで）",null,null,null,null,null,null,null,null,null,null,null,null,"キャンプ指導者養成講習会",null,"水",4,null,"うどん作り(打ち込み)","キャンプファイヤー"]
[null,null,null,null,null,null,null,null,null,null,null,null,null,null,null,null,null,"来所日が決まり次第お知らせください",null,null,null,null,null,null,null,null,null,null,null,null,null,null,"木",5,null,"うどん作り(冷やし)","消灯・就寝"]
["利用年月日",null,null,7,"年",null,"月",null,"日(",{"$f":"TEXT(DATE(D8+2018,F8,H8),\"aaa\")","v":"土"},"）～",null,"月",null,"日(",{"$f":"TEXT(DATE(D8+2018,L8,N8),\"aaa\")","v":"土"},"）","申請書類の提出",null,null,null,null,"月",null,"日",null,null,null,null,null,null,null,"金",6,null,"WR","研修（第１、２研修室）"]
[null,null,null,null,null,null,null,null,null,null,null,null,null,null,null,null,null,"（入所の1か月前まで）",null,null,null,null,null,null,null,null,{"$f":"DATE(D8+2018,F8,H8)-21","v":"2024-11-09"},null,null,null,null,null,"土",7,null,"焼き板"]
["利用者",null,null,"団体名",null,null,null,null,null,null,null,null,null,null,null,null,null,"食事人数の確定",null,null,null,null,"月",null,"日",null,null,null,null,null,null,null,null,8,null,"退所点検"]
[null,null,null,null,null,null,null,null,null,null,null,null,null,null,null,null,null,"（入所の４日前 土日祝除く）",null,null,null,null,null,null,null,null,{"$f":"DATE(D8+2018,F8,H8)-3","v":"2024-11-27"},null,null,null,null,null,null,9,null,"退所"]
[null,null,null,"代表者",null,null,null,null,null,null,null,"担当",null,null,null,"目　的",null,null,null,null,null,null,null,null,null,null,null,null,null,null,null,null,null,10,null,"クラフト活動"]
[null,null,null,null,null,null,null,null,null,null,null,null,null,null,null,null,null,null,null,null,null,null,null,null,null,null,null,null,null,null,null,null,null,11,null,"研修（第１、２研修室）"]
[null,null,null,"住　所",null,"〒",null,null,null,null,null,null,null,null,null,"連絡先",null,"TEL",null,null,null,null,null,null,null,null,null,null,null,null,null,null,null,12]
[null,null,null,null,null,null,null,null,null,null,null,null,null,null,null,null,null," ＦＡＸ",null,null,null,null,null,null,null,null,null,null,null,null,null,null,null,13]
["利用人数",null,null,null,"一般",null,null,"高校生",null,null,"中学生",null,null,"小学生（以下）",null,null,null,"合計",null,null,{"$f":"SUM(E17+E18+H17+H18+K17+K18+N17+N18)","v":0},null,"名",null,null,null,null,null,null,null,null,null,null,14]
[null,null,null,"男",null,null,null,null,null,null,null,null,null,null,null,null,null,null,null,null,null,null,null,null,null,null,null,null,null,null,null,null,null,15]
[null,null,null,"女",null,null,null,null,null,null,null,null,null,null,null,null,null,null,null,null,null,null,null,null,null,null,null,null,null,null,null,null,null,16]
["利用施設\n（宿 泊）",null,null,"第 １ 指導者室\n１０１\n１０２",null,null,"２０１\n２０２\n第 ２ 指導者室\n２０３\n２０４\n２０５",null,null,"３０１\n３０２\n３０３\n第 ３ 指導者室",null,null,"第 ４ 指導者室\n４０１\n４０２",null,null,"５０１\n５０２\n第 ５ 指導者室\n５０３\n５０４",null,null,"６０１\n６０２\n６０３\n６０４",null,null,null,"テント\n計（）張\n\n利用サイト\n（　　　）",null,null,null,null,null,null,null,null,null,null,17]
["活動計画",null,null,"入所時間",null,"日",null,"午　　前",null,null,null,null,"昼食","午　　後",null,null,null,null,"夕食","夜",null,null,null,null,null,null,null,null,null,null,null,null,null,18]
[null,null,null,":",null,{"$f":"F8","v":0},null,null,null,null,null,null,null,null,null,null,null,null,null,null,null,null,null,null,null,null,null,null,null,null,null,null,null,19]
[null,null,null,"退所時間",null,"／",null,null,null,null,null,null,null,null,null,null,null,null,null,null,null,null,null,null,null,null,null,null,null,null,null,null,null,20]
[null,null,null,":",null,{"$f":"H8","v":0},null,null,null,null,null,null,null,null,null,null,null,null,null,null,null,null,null,null,null,null,null,null,null,null,null,null,null,21]
[null,null,null,null,null,{"$f":"F8","v":0},null,null,null,null,null,null,null,null,null,null,null,null,null,null,null,null,null,null,null,null,null,null,null,null,null,null,null,22]
[null,null,null,"退所日の\n会計確認",null,"／",null,null,null,null,null,null,null,null,null,null,null,null,null,null,null,null,null,null,null,null,null,null,null,null,null,null,null,23]
[null,null,null,":",null,{"$f":"F23+1","v":1},null,null,null,null,null,null,null,null,null,null,null,null,null,null,null,null,null,null,null,null,null,null,null,null,null,null,null,24]
[null,null,null,null,null,{"$f":"F8","v":0},null,null,null,null,null,null,null,"　",null,null,null,null,null,null,null,null,null,null,null,null,null,null,null,null,null,null,null,25]
[null,null,null,"退所点検",null,"／",null,null,null,null,null,null,null,null,null,null,null,null,null,null,null,null,null,null,null,null,null,null,null,null,null,null,null,26]
[null,null,null,":",null,{"$f":"F26+1","v":2},null,null,null,null,null,null,null,null,null,null,null,null,null,null,null,null,null,null,null,null,null,null,null,null,null,null,null,27]
["備　考",null,null,"・下見打合せまでに「利用の手引き」を必ずご確認ください。\n・手続きと書類の提出は「利用の手引き」にのっとって行ってください。\n\n※「利用の手引き」、「提出書類」はホームページからダウンロードしてご利用ください。\n\n五色台少年自然センター　　TEL：０８７－８８１－４４２８\n　　　　　　　　　　　　　　　　　 FAX：０８７－８８１－４４８４\n　　　　　　　　　　　　　　　　　メールアドレス：goshikidaishonen@pref.kagawa.lg.jp 　",null,null,null,null,null,null,null,null,null,null,null,null,null,null,null,null,null,null,null,null,null,null,null,null,null,null,null,null,null,28]
["利用期日決定の\nお知らせ",null,null,null,"文書\n日付",null,null,null,"発送日",null,null,null,"書類\n提出",null,null,null,"　□　利用申請書\n　□　活動日程表\n　□　施設利用の詳細\n　□　食事人数計画\n　□　食事メニュー除去希望記入表",null,null,null,null,null,null,null,null,null,null,null,null,null,null,null,null,29]
[null,null,null,null,null,null,null,null,"方法",null,"FAX\n郵送\nMAIL",null,null,null,null,null,null,null,null,null,null,null,null,null,null,null,null,null,null,null,null,null,null,30]
[null,null,null,null,null,null,null,null,null,null,null,null,null,null,null,null,null,null,null,null,null,null,null,null,null,null,null,null,null,null,null,null,null,31]

{"sheet":"３泊４日","index":2,"n_rows":35,"n_cols":37,"rows_kept":35,"cut":false,"hidden":false,"merged":[[15,22,17,24],[13,19,13,24],[14,19,14,24],[13,6,13,14],[11,12,11,14],[12,11,12,14],[17,4,17,6],[17,7,17,9],[17,10,17,12],[17,13,17,16],[15,10,15,12],[15,13,15,16],[16,4,16,6],[16,7,16,9],[16,10,16,12],[16,13,16,16],[15,17,17,19],[15,7,15,9],[14,5,14,14],[33,14,34,15],[33,16,34,24],[34,8,34,9],[34,10,34,11],[33,0,34,3],[33,4,34,5],[33,6,34,7],[33,8,33,9],[33,10,33,11],[33,12,34,13],[27,20,27,24],[32,0,32,2],[32,3,32,24],[19,0,31,2],[25,8,25,11],[25,14,25,17],[31,8,31,11],[31,14,31,17],[23,8,23,11],[23,14,23,17],[29,8,29,11],[18,21,18,24],[22,8,22,11],[22,14,22,17],[22,20,22,24],[20,6,22,6],[20,8,20,11],[20,14,20,17],[20,20,20,24],[21,8,21,11],[21,12,22,12],[21,14,21,17],[21,18,22,18],[21,20,21,24],[19,7,19,11],[19,13,19,17],[18,9,18,11],[18,12,18,14],[18,15,18,17],[9,0,14,2],[9,3,10,4],[9,5,10,16],[9,17,9,20],[10,17,10,20],[11,3,12,4],[11,5,12,10],[11,15,12,16],[15,0,17,2],[15,4,15,6],[15,20,17,21],[7,0,8,2],[7,17,7,20],[8,17,8,20],[7,3,8,3],[7,4,8,4],[7,5,8,5],[7,6,8,6],[7,7,8,7],[7,8,8,8],[7,9,8,9],[7,10,8,10],[7,11,8,11],[7,12,8,12],[7,13,8,13],[7,14,8,14],[7,15,8,15],[7,16,8,16],[1,17,1,18],[2,0,3,1],[2,2,3,3],[2,4,3,5],[2,6,3,7],[2,8,3,9],[2,10,3,11],[2,17,3,18],[2,19,3,24],[1,0,1,1],[1,2,1,3],[1,8,1,9],[1,4,1,7],[2,12,3,13],[1,10,1,11],[1,12,1,15],[2,14,3,15],[19,19,19,24],[20,3,20,4],[4,24,5,24],[7,21,8,21],[7,22,8,22],[7,23,8,23],[7,24,8,24],[9,21,10,21],[9,22,10,22],[9,23,10,23],[9,24,10,24],[5,17,5,20],[6,17,6,24],[4,21,5,21],[4,7,6,16],[4,17,4,20],[4,22,5,22],[4,23,5,23],[18,3,18,5],[18,6,18,8],[11,17,12,24],[13,3,14,4],[13,15,14,16],[18,18,18,20],[23,20,23,24],[24,8,24,11],[24,12,25,12],[24,14,24,17],[24,18,25,18],[24,20,24,24],[26,8,26,11],[31,20,31,24],[25,20,25,24],[28,8,28,11],[28,14,28,17],[28,20,28,24],[29,20,29,24],[30,20,30,24],[29,14,29,17],[30,8,30,11],[30,12,31,12],[30,14,30,17],[26,14,26,17],[27,8,27,11],[27,12,28,12],[27,14,27,17],[26,20,26,24],[27,18,28,18],[18,0,18,2],[25,3,25,4],[26,3,26,4],[27,3,27,4],[28,3,28,4],[29,3,29,4],[19,3,19,4],[30,3,31,4],[29,18,31,18],[21,3,21,4],[22,3,22,4],[23,3,23,4],[24,3,24,4],[24,6,25,6],[27,6,28,6],[30,6,31,6]]}
[]
["所　長",null,"次　長",null,"総　務",null,null,null,"財団",null,"FD",null,"受付",null,null,null,null,"受付日",null,{"$f":"YEAR(TODAY())-2018","v":7},"年",{"$f":"MONTH(TODAY())","v":4},"月",{"$f":"DAY(TODAY())","v":22},"日"]
[null,null,null,null,null,null,null,null,null,null,null,null,null,null,null,null,null,"受付者",null,null,null,null,null,null,null,null,null,null,null,null,"野外体験活動","食堂",null,"日",1,"カレー作り","天体観測"]
[null,null,null,null,null,null,null,null,null,null,null,null,null,null,null,null,null,null,null,null,null,null,null,null,null,null,null,null,null,null,"大会参加","自炊",null,"月",2,"自然散策","入浴"]
[null,null,null,null,null,null,null,"利用申込　受付票",null,null,null,null,null,null,null,null,null,"下見・打ち合せ",null,null,null,null,"月",null,"日",null,null,null,null,null,"研修",null,null,"火",3,"うどん作り(打ち込み)","キャンドルサービス"]
[null,null,null,null,null,null,null,null,null,null,null,null,null,null,null,null,null,"（入所の１カ月前まで）",null,null,null,null,null,null,null,null,null,null,null,null,null,null,null,"水",4,"うどん作り(冷やし)","キャンプファイヤー"]
[null,null,null,null,null,null,null,null,null,null,null,null,null,null,null,null,null,"来所日が決まり次第お知らせください",null,null,null,null,null,null,null,null,null,null,null,null,null,null,null,"木",5,"WR"]
["利用年月日",null,null,"R7","年",null,"月",null,"日（",null,"）～",null,"月",null,"日（",null,"）　泊","申請書類の提出",null,null,null,null,"月",null,"日",null,null,null,null,null,null,null,null,"金",6,"焼き板"]
[null,null,null,null,null,null,null,null,null,null,null,null,null,null,null,null,null,"（入所の３週間前まで）",null,null,null,null,null,null,null,null,null,null,null,null,null,null,null,"土",7]
["利用者",null,null,"団体名",null,null,null,null,null,null,null,null,null,null,null,null,null,"食事人数の確定",null,null,null,null,"月",null,"日",null,null,null,null,null,null,null,null,null,8]
[null,null,null,null,null,null,null,null,null,null,null,null,null,null,null,null,null,"（入所の３日前 土日祝除く）",null,null,null,null,null,null,null,null,null,null,null,null,null,null,null,null,9]
[null,null,null,"代表者",null,null,null,null,null,null,null,"担当",null,null,null,"目　的",null,null,null,null,null,null,null,null,null,null,null,null,null,null,null,null,null,null,10]
[null,null,null,null,null,null,null,null,null,null,null,null,null,null,null,null,null,null,null,null,null,null,null,null,null,null,null,null,null,null,null,null,null,null,11]
[null,null,null,"住　所",null," 〒",{"$f":"PHONETIC(F15)","v":""},null,null,null,null,null,null,null,null,"連絡先",null," ＴＥＬ",null,null,null,null,null,null,null,null,null,null,null,null,null,null,null,null,12]
[null,null,null,null,null,null,null,null,null,null,null,null,null,null,null,null,null," ＦＡＸ",null,null,null,null,null,null,null,null,null,null,null,null,null,null,null,null,13]
["利用人数",null,null,null,"一般",null,null,"高校生",null,null,"中学生",null,null,"小学生（以下）",null,null,null,"合計",null,null,{"$f":"SUM(E17+E18+H17+H18+K17+K18+N17+N18)","v":0},null,"名",null,null,null,null,null,null,null,null,null,null,null,14]
[null,null,null,"男",null,null,null,null,null,null,null,null,null,null,null,null,null,null,null,null,null,null,null,null,null,null,null,null,null,null,null,null,null,null,15]
[null,null,null,"女",null,null,null,null,null,null,null,null,null,null,null,null,null,null,null,null,null,null,null,null,null,null,null,null,null,null,null,null,null,null,16]
["利用施設\n（宿 泊）",null,null,"第 １ 指導者室\n１０１\n１０２",null,null,"２０１\n２０２\n第 ２ 指導者室\n２０３\n２０４\n２０５",null,null,"３０１\n３０２\n３０３\n第 ３ 指導者室",null,null,"第 ４ 指導者室\n４０１\n４０２",null,null,"５０１\n５０２\n第 ５ 指導者室\n５０３\n５０４",null,null,"６０１\n６０２\n６０３\n６０４",null,null,"テント\n計（　　　）張\n\n\n利用サイト\n（　　　　　）",null,null,null,null,null,null,null,null,null,null,null,null,18]
["活動計画",null,null,null,null,"日","朝食","午　　前",null,null,null,null,"昼食","午　　後",null,null,null,null,"夕食","夜",null,null,null,null,null,null,null,null,null,null,null,null,null,null,19]
[null,null,null,"入所時間",null,{"$f":"F8","v":0},null,null,null,null,null,null,null,null,null,null,null,null,null,null,null,null,null,null,null,null,null,null,null,null,null,null,null,null,20]
[null,null,null,"：",null,"／",null,null,null,null,null,null,"：",null,null,null,null,null,"：",null,null,null,null,null,null,null,null,null,null,null,null,null,null,null,21]
[null,null,null,"退所時間",null,{"$f":"H8","v":0},null,null,null,null,null,null,null,null,null,null,null,null,null,null,null,null,null,null,null,null,null,null,null,null,null,null,null,null,22]
[null,null,null,"：",null,{"$f":"F8","v":0},null,null,null,null,null,null,null,null,null,null,null,null,null,null,null,null,null,null,null,null,null,null,null,null,null,null,null,null,23]
[null,null,null,null,null,"／","：",null,null,null,null,null,"：",null,null,null,null,null,"：",null,null,null,null,null,null,null,null,null,null,null,null,null,null,null,24]
[null,null,null,"退所日の\n会計確認",null,{"$f":"F23+1","v":1},null,null,null,null,null,null,null,null,null,null,null,null,null,null,null,null,null,null,null,null,null,null,null,null,null,null,null,null,25]
[null,null,null,"：",null,{"$f":"F8","v":0},null,null,null,null,null,null,null,null,null,null,null,null,null,null,null,null,null,null,null,null,null,null,null,null,null,null,null,null,26]
[null,null,null,null,null,"／","：",null,null,null,null,null,"：",null,null,null,null,null,"：",null,null,null,null,null,null,null,null,null,null,null,null,null,null,null,27]
[null,null,null,"退所点検",null,{"$f":"F26+1","v":2},null,null,null,null,null,null,null,null,null,null,null,null,null,null,null,null,null,null,null,null,null,null,null,null,null,null,null,null,28]
[null,null,null,"：",null,{"$f":"F8","v":0},null,null,null,null,null,null,null,null,null,null,null,null,null,null,null,null,null,null,null,null,null,null,null,null,null,null,null,null,29]
[null,null,null,null,null,"／","：",null,null,null,null,null,"：",null,null,null,null,null,null,null,null,null,null,null,null,null,null,null,null,null,null,null,null,null,30]
[null,null,null,null,null,{"$f":"F29+1","v":3},null,null,null,null,null,null,null,null,null,null,null,null,null,null,null,null,null,null,null,null,null,null,null,null,null,null,null,null,31]
["備　考",null,null,"・下見打合せまでに「利用の手引き」を必ずご確認ください。\n・手続きと書類の提出は「利用の手引き」にのっとって行ってください。\n\n※「利用の手引き」、「提出書類」はホームページからダウンロードしてご利用ください。\n\n五色台少年自然センター　　TEL：０８７－８８１－４４２８\n　　　　　　　　　　　　　　　　　 FAX：０８７－８８１－４４８４\n　　　　　　　　　　　　　　　　　メールアドレス：goshikidaishonen@pref.kagawa.lg.jp 　"]
["利用期日決定の\nお知らせ",null,null,null,"文書\n日付",null,null,null,"発送日",null,null,null,"書類\n提出",null,null,null,"　□　利用申請書\n　□　活動日程表\n　□　施設利用の詳細\n　□　食事人数計画\n　□　食事メニュー除去希望記入表"]
[null,null,null,null,null,null,null,null,"方法",null,"FAX\n郵送\nMAIL"]